Cogmind - Beta 16.1 @@@ ROGUE MODE // 2026.04.01 @ 14:22:14 Player: gamerman Result: Destroyed by D-53 Grenadier with Mini Grenade Launcher Performance ------------- Evolutions (0) 0 Regions Visited (2) 400 Robots Destroyed (6) 30 Value Destroyed (165) 165 Prototype IDs (2) 40 Alien Tech Used (0) 0 Bonus (0) 0 TOTAL SCORE: 635 Bonus ------- None Cogmind --------- Core Integrity 0/250 Matter 300/300 Energy 98/100 System Corruption 0% Temperature Cool (0) Movement Core (50) Location -10/Mines Parts ------- > --- POWER (1) -------- (None) > --- PROPULSION (2) --- Compact Wheel > --- UTILITY (2) ------ (None) > --- WEAPON (2) ------- (None) > --- INVENTORY (5) ---- Light Ion Engine Light Nuclear Core Light Treads Light Treads Improved Heat Sink Peak State ------------ > --- POWER ------------ Ion Engine > --- PROPULSION ------- Compact Wheel Compact Wheel > --- UTILITY ---------- Small Storage Unit > --- WEAPON ----------- EM Pulse Gun EM Pulse Gun > --- INVENTORY -------- Light Ion Engine Light Treads Light Treads Assault Rifle [Rating: 6] Favorites ----------- Power Ion Engine Engine Ion Engine Propulsion Compact Wheel Wheel Compact Wheel Utility Small Storage Unit Storage Small Storage Unit Weapon EM Pulse Gun Energy Gun EM Pulse Gun Ballistic Gun Assault Rifle Build | -11 -10 -10 ------- Run | Yrd Mat Min Slots Evolved . | . . . Power . | . . . Propulsion . | . . . Utility . | . . . Weapon . | . . . Parts Attached 7 | 6 1 . Power 1 | 1 . . Engine 1 | 1 . . Core . | . . . Reactor . | . . . Propulsion 2 | 2 . . Treads . | . . . Leg . | . . . Wheel 2 | 2 . . Hover . | . . . Flight . | . . . Utility 1 | 1 . . Device . | . . . Storage 1 | 1 . . Processor . | . . . Hackware . | . . . Protection . | . . . Artifact . | . . . Weapon 3 | 2 1 . Energy Gun 2 | 2 . . Energy Cannon . | . . . Ballistic Gun 1 | . 1 . Ballistic Cannon . | . . . Launcher . | . . . Special Weapon . | . . . Impact Weapon . | . . . Slashing Weapon . | . . . Piercing Weapon . | . . . Special Melee Weapon . | . . . Unidentified Prototypes . | . . . Parts Lost 5 | . 3 2 Power 1 | . . 1 Propulsion 1 | . 1 . Utility . | . . . Weapon 3 | . 2 1 Highest Loss Streak 2 | . 1 2 To Critical Strikes . | . . . Average Backups 5 | 2 5 7 Power 1 | . 1 2 Propulsion 2 | 1 3 4 Utility . | . . 1 Weapon . | . . . Tool/Special . | . . . Unused Backups 7 | . . 7 Power 2 | . . 2 Propulsion 4 | . . 4 Utility 1 | . . 1 Weapon . | . . . Tool/Special . | . . . Average Slot Usage (%) 71 | . 77 50 Engine 13 | . 14 12 Wheel 25 | . 28 14 Storage 14 | . 14 14 Energy Gun 11 | . 15 . Ballistic Gun 6 | . 5 10 Peak Build Rating 6 | 6 6 5 Average Rating 5 | 3 5 4 On Entrance 3 | . 6 5 Avg Prop Armor Cover (%) 18 | . . 18 Naked Turns . | . . . Heaviest Build 14 | 14 14 12 Greatest Support 32 | 32 32 16 Greatest Overweight (x) 1 | 1 . . Average Overweight (x) . | . . . Largest Inventory Capacity 8 | 8 8 8 Average Capacity 7 | 5 8 7 Most Carried 7 | 4 7 7 Average Carried 5 | 2 6 6 Final Capacity 8 | 8 8 5 Final Carried 7 | 4 7 5 Class Distribution -------------------- 100% | Mutant Dominant Class ---------------- Mutant | -10/Materials Mutant | -10/Mines Resources | -11 -10 -10 ----------- Run | Yrd Mat Min Matter Collected 326 | 226 51 49 Remotely . | . . . Salvage Created 282 | . 282 . Parts 12 | . 12 . Haulers Intercepted 1 | . 1 . Recyclers Shooed . | . . . Parts Field Recycled . | . . . Retrieved Matter . | . . . Parts Self-Destructed . | . . . Prevented . | . . . Parts Restored . | . . . Kills | -11 -10 -10 ------- Run | Yrd Mat Min Combat Hostiles Destroyed 4 | . 4 . Guns 4 | . 4 . Classes Destroyed 3 | . 3 . Worker 1 | . 1 . Hauler 1 | . 1 . Grunt 4 | . 4 . Best Kill Streak 2 | . 2 . Combat Bots Only 2 | . 2 . Max Kills in Single Turn 1 | . 1 . Gunslinging . | . . . Exploded . | . . . Melee . | . . . Uniques/NPCs Destroyed . | . . . Combat | -11 -10 -10 -------- Run | Yrd Mat Min Hostile Shots Fired 50 | . 47 3 Missed 9 | . 9 . Hits 41 | . 38 3 Projectile 41 | . 38 3 AOE 4 | . . 4 Critical Strikes 2 | . 2 . Damage Taken 664 | . 507 157 Core 267 | . 139 128 Absorbed by Shields . | . . . Core Remaining (%) 100 | 100 . . Volleys Fired 39 | . 39 . Largest 2 | . 2 . Hottest 80 | . 80 . Shots Fired 56 | . 56 . Gun 56 | . 56 . Cannon . | . . . Launcher . | . . . Special . | . . . Kinetic 22 | . 22 . Thermal . | . . . Explosive . | . . . Electromagnetic 34 | . 34 . Robot Hit Streak 15 | . 15 . Robot Miss Streak 4 | . 4 . Penetration Max . | . . . Secondary Targets 1 | . 1 . Max Gunslinging Chain 1 | . 1 . Shots Hit Robots 38 | . 38 . Core Hits 13 | . 13 . Critical Kills . | . . . Critical Parts Destroyed . | . . . Critical Strikes . | . . . Melee Attacks . | . . . Impact . | . . . Slashing . | . . . Piercing . | . . . Sneak Attacks . | . . . Combat Hostiles . | . . . Follow-up Attacks . | . . . Damage Inflicted 509 | . 509 . Guns 509 | . 509 . Cannons . | . . . Explosions . | . . . Melee . | . . . Ramming . | . . . Kinetic 180 | . 180 . Thermal . | . . . Explosive . | . . . Electromagnetic 329 | . 329 . Impact . | . . . Slashing . | . . . Piercing . | . . . Highest Corruption . | . . . Average Corruption . | . . . Corruption Purged . | . . . Corruption Blocked . | . . . Overload Shots . | . . . Overflow Damage . | . . . Projectiles . | . . . Explosions . | . . . Melee . | . . . Knockbacks . | . . . Impact . | . . . Kinetic . | . . . Secondary . | . . . Self-Inflicted Damage . | . . . Shots . | . . . Rammed . | . . . Targets Rammed . | . . . Kicked . | . . . Crushed . | . . . Highest Temperature 162 | . 162 . Average Temperature 58 | . 58 . Received Heat Transfer 333 | . 333 . Siege Activations . | . . . Martial Activations . | . . . Shielding Activations . | . . . Robots Disrupted . | . . . Combat Hostiles . | . . . Robots Corrupted 1 | . 1 . Combat Hostiles . | . . . Parts Fried 3 | . 3 . Impact Corruptions . | . . . Robots Melted . | . . . Combat Hostiles . | . . . Parts Melted . | . . . Heat Transferred . | . . . Parts Sabotaged . | . . . Parts Stolen . | . . . Parts Stripped . | . . . Power Chain Reactions . | . . . Alert | -11 -10 -10 ------- Run | Yrd Mat Min Maximum Alert Level . | . . . Low Security (%) 100 | 100 100 100 Level 1 . | . . . Level 2 . | . . . Level 3 . | . . . Level 4 . | . . . Level 5 . | . . . High Security . | . . . Max Security . | . . . Peak Influence 50 | . 50 5 Initial . | . . . Average 8 | . 12 . Influence Increases 147 | . 132 15 Destroy 0b10 Robot/C 80 | . 80 . Destroy 0b10 Robot/NC 10 | . 10 . Destroy Leader 22 | . 22 . Successful Hack 5 | . 5 . Lose Combat Pursuer 30 | . 15 15 Influence Decreases 142 | . 132 10 Time Decay 102 | . 92 10 Lost Part 5 | . 5 . Purge Threat 35 | . 35 . Squads Dispatched . | . . . Investigation . | . . . Extermination . | . . . Reinforcement . | . . . Assault . | . . . Garrison . | . . . Intercept . | . . . Searches Triggered . | . . . Construction Impeded . | . . . Haulers Reinforced . | . . . Active Scanning Responses . | . . . Cargo Convoy Interrupts . | . . . Stealth | -11 -10 -10 --------- Run | Yrd Mat Min Distress Signals 1 | . 1 . Communications Jammed . | . . . Distress Signals . | . . . Times Spotted 13 | . 11 2 Peak Tracking Total 5 | . 5 4 Tactical Retreats 2 | . 1 1 Traps | -11 -10 -10 ------- Run | Yrd Mat Min Traps Triggered . | . . . Indirectly . | . . . Trap Hack Attempts . | . . . Triggered . | . . . Disarmed . | . . . Reprogrammed . | . . . Reused . | . . . Traps Extracted . | . . . Installed . | . . . Triggered . | . . . Machines | -11 -10 -10 ---------- Run | Yrd Mat Min Machines Disabled 1 | . 1 . Max in Single Turn 1 | . 1 . Machines Repaired . | . . . Machines Dismantled . | . . . Machines Sabotaged . | . . . Overloaded Fab Kills . | . . . Hacking | -11 -10 -10 --------- Run | Yrd Mat Min Machines Accessed 1 | . 1 . Terminals 1 | . 1 . Fabricators . | . . . Repair Stations . | . . . Recycling Units . | . . . Scanalyzers . | . . . Garrison Access . | . . . Total Hacks 4 | . 4 . Successful 2 | . 2 . Failed 2 | . 2 . Catastrophic 1 | . 1 . Database Lockouts . | . . . Manual . | . . . Terminals 4 | . 4 . Fabricators . | . . . Repair Stations . | . . . Recycling Units . | . . . Scanalyzers . | . . . Garrison Access . | . . . Terminal Hacks 2 | . 2 . Prototype ID Bank 1 | . 1 . Unreport Threat 1 | . 1 . Fabricator Hacks . | . . . Repair Station Hacks . | . . . Recycling Unit Hacks . | . . . Scanalyzer . | . . . Garrison Access Hacks . | . . . Unauthorized Hacks . | . . . Terminals . | . . . Fabricators . | . . . Repair Stations . | . . . Recycling Units . | . . . Scanalyzers . | . . . Garrison Access . | . . . Data Cores Recovered . | . . . Used . | . . . Hacking Detections 1 | . 1 . Full Trace Events . | . . . Feedback Events . | . . . Feedback Blocked . | . . . Robot Schematics Acquired . | . . . Robots Built . | . . . Authchips . | . . . Time . | . . . Total Robot Build Rating . | . . . Part Schematics Acquired . | . . . Parts Built . | . . . Authchips . | . . . Time . | . . . Total Part Build Rating . | . . . Part Studies Acquired . | . . . Parts Repaired . | . . . Time . | . . . Parts Recycled . | . . . Recycled Matter . | . . . Retrieved Matter . | . . . Retrieved Components . | . . . Parts Scanalyzed . | . . . Part Schematics Acquired . | . . . Parts Damaged . | . . . Bothacking | -11 -10 -10 ------------ Run | Yrd Mat Min Used RIF Installer . | . . . Robots Hacked . | . . . Non-combat . | . . . Combat . | . . . Robot Hacks Applied . | . . . Relay Couplers Released . | . . . Fabnet Peak Effective % . | . . . Robots Rewired . | . . . Allies Hacked . | . . . Hacks Repelled . | . . . Allies | -11 -10 -10 -------- Run | Yrd Mat Min Total Allies . | . . . Largest Group . | . . . Highest-Rated Group . | . . . Highest-Rated Ally . | . . . Total Orders . | . . . Ally Attacks . | . . . Total Damage . | . . . Kills . | . . . Allies Corrupted . | . . . Allies Melted . | . . . Intel | -11 -10 -10 ------- Run | Yrd Mat Min Active Infowar (turns) . | . . . Robot Analysis Total . | . . . Derelict Logs Recovered 1 | . . 1 Drone Launches . | . . . Drone Recoveries . | . . . Exploration | -11 -10 -10 ------------- Run | Yrd Mat Min Turns Passed 387 | 68 259 60 Spaces Moved 257 | 62 135 60 Core 19 | 17 . 2 Treads . | . . . Legs . | . . . Wheels 238 | 45 135 58 Hover . | . . . Flight . | . . . Fastest Speed 50 | 50 100 50 Average Speed 97 | 90 100 98 Slowest Speed 100 | 100 100 100 Overloaded Moves . | . . . Propulsion Burnouts . | . . . Robots Hopped . | . . . Potential Cave-ins . | . . . Cave-ins Triggered . | . . . Exploration Rate (%) 20 | 5 33 23 Regions Visited 2 Branch Regions 1 Pre-discovered Areas 1 | . . 1 Known Exits Taken . | . . . Unknown Exits Taken 2 | 1 1 . Scrap Searched . | . . . Spaces Dug . | . . . Terrain Destroyed . | . . . Melee . | . . . Projectile . | . . . AOE . | . . . Terrain Rammed . | . . . Walls Destroyed . | . . . Machines Disabled . | . . . Actions | -11 -10 -10 --------- Run | Yrd Mat Min Total 335 | 71 203 61 Wait 25 | . 25 . Move 255 | 61 134 60 Hop . | . . . Pick Up 8 | 4 4 . Fast Attach 6 | 6 . . Attach 1 | . 1 . Detach . | . . . Swap . | . . . Drop 1 | . . 1 Fire 39 | . 39 . Melee . | . . . Ram . | . . . Kick . | . . . Crush . | . . . Escape Stasis . | . . . Rewire . | . . . Trap . | . . . Miscellaneous . | . . . Route ------- -11/Scrapyard -10/Materials -10/Mines History --------- Turn | Location | Event 4 | -11/Scrapyard | Discovered new exit (range 15) 69 | -11/Scrapyard | Entered Materials 301 | -10/Materials | Build established: Mutant 303 | -10/Materials | Discovered new exit (range 6) 312 | -10/Materials | Core integrity fell below 50% 328 | -10/Materials | Entered Mines 329 | -10/Mines | Assembled infested the area 339 | -10/Mines | Learned location of Zion (-7) 387 | -10/Mines | Core integrity fell below 20% 388 | -10/Mines | Destroyed by D-53 Grenadier with Mini Grenade Launcher Last Messages --------------- 00240_ Acquired 17 matter. 00242_ K-01 Serf collects debris. 00270_ R-06 Scavenger collects Sml. Laser. 00303_ EXIT=FOUND 00323_ Com. Wheel destroyed. 00323_ Machine disabled. LOCATION=UNKNOWN GOAL=ESCAPE 00329_ ALERT: Infestation in the mines, dispatching Demolisher response squad. 00329_ T-07 Excavator is excavating. 00331_ Acquired 49 matter. 00332_ T-07 Excavator is excavating. 00339_ Acquired derelict log, extracted data. World map updated: -7/Zion. 00364_ AW-IF6(g) destroyed. 00364_ Assault Rifle destroyed. 00375_ Ion Engine destroyed. 00386_ Dropped Sml. Storage Unit. 00388_ A derelict emerges from the shadows. Map ----- +----------------------------------------------------+ | | | | | ???????????????????????????????????????????????? | | ???????????????????????????????????????????????? | | ???????????????????????????????????????????????? | | ??????####?????????????????????????????????????? | | ?????## ##???????????????????????????????????? | | ?????# ##??????????????????????????????????? | | ????## ##?????????????????????????????????? | | ????# ###???????????????????????????????? | | ????# ##??????????????????????????????? | | ?????# ! #?###??????????????????????????? | | ?????## ## #??????????????????????????? | | ??????## #??????????????????????????? | | ???????## /% ##?????????????????????????? | | ????????# ## #?????????????????????????? | | ????????# ### #?????????????????????????? | | ????????# #?## ##?????????????????????????? | | ????????# #??# ##??????????????????????????? | | ????????# #??## ##???????????????????????????? | | ????????# #???## #???####?????????????????????? | | ????????# #????# #??## ###???????????????????? | | ????????# #????# #### ##??????????????????? | | ??????### #????# ## #??????????????????? | | ??????# #????# # = ##?????????????????? | | ??????# ###??### =! @ ##????????????????? | | ??????# #???## #??????????????? | | ??????# #???# # #???????????? | | ??????# #???# ##? #???????????? | | ??????# ##??## ## ##??? ?????????? | | ??????# ##??###?## #?????? g #??????????? | | ??????# ##??????# #??????? #??????????? | | ?????## ##???#### #???????? #??????????? | | ?????# #???# # #?????????? ???????????? | | ?????# ##### dd #??????????? ???????????? | | ?????## #???????????????????????? | | ??????# #???????????????????????? | | ?????## ###### #???????????????????????? | | ???# #????#########???????????????????????? | | ???## #????????????????????????????????????? | | ???# !* #????????????????????????????????????? | | ???# =% #????????????????????????????????????? | | ???## [= #????????????????????????????????????? | | ???? ##????????????????????????????????????? | | ???## ##?????????????????????????????????????? | | ????## #??????????????????????????????????????? | | ?????# #??????????????????????????????????????? | | ?????# ???????????????????????????????????????? | | ?????# ???????????????????????????????????????? | | ????? "???????????????????????????????????????? | +----------------------------------------------------+ Best States ------------- Heat Dissipation 25 Energy Generation 10 Energy Capacity 250 Matter Stores 300 Matter Capacity 300 Sight Range 16 Terrain Scan Density 10 Evasion (%) 40 Item Schematics ----------------- None Robot Schematics ------------------ None Fabricated ------------ Nothing Repaired ---------- Nothing Studied --------- None Alien Tech Used ----------------- None Achievements -------------- None Challenges ------------ None Game ------ Seed DeepMiningShovel Manual? 0 Play Time 00:04:39 Cumulative 31.8 hours Start 2026.04.01 @ 14:06:37 End 2026.04.01 @ 14:22:14 Sessions 1 Manual Loads 0 Difficulty Rogue Special Mode None Game No. 39 Rogue 39 Adventurer 0 Explorer 0 Win Type - Total 1 Types 1/0/0/0/0/0/0/0/0/0 Lore% 33 Gallery% 29 Achievement% 24 Wizard Run 0 Options --------- Layout 1 ASCII 0 Keyboard 0 Movement Vi Keybinds 0 Fullscreen 1 Font 24/Smallcaps Map View 50x40 Zoom Use 0% Tactical HUD 1 Map Filters NONE Filters NONE Steam 1 RUN: c34b39c0-0271-4d1d-832f-c2015f050457